[Event "21st IPCA World Championship 2022"]
[Site "Ashdod"]
[Date "2022.05.14"]
[Round "7.1"]
[White "Zilberman, Yaacov"]
[Black "Obodchuk, Andrei"]
[Result "1/2-1/2"]
[ECO "E51"]
[WhiteElo "2315"]
[BlackElo "2295"]
[Annotator "TA"]
[PlyCount "62"]
[EventDate "2022.05.09"]
[EventType "swiss"]
[EventCountry "ISR"]
[SourceTitle "playchess.com"]
[Source "ChessBase"]
[SourceQuality "1"]
[TimeControl "5400+30"]

{[%evp 14,62,0,-18,-22,-16,0,0,0,0,0,0,0,-38,-41,-35,-37,-34,-23,-30,-26,-25,-19,-21,-28,-32,-24,-33,-33,-33,-32,-38,-31,-27,-28,-33,-37,-43,-28,-33,-27,-32,-25,-58,-6,0,0,-4,0,-14,-17]} 1. d4 {[%emt 0:00:10]} Nf6 {[%emt 0:00:06]} 2. c4 {[%emt 0:00:19]} e6 {[%emt 0:00:07]} 3. Nc3 {[%emt 0:00:20]} Bb4 {[%emt 0:00:06]} 4. e3 {[%emt 0:00:41]} O-O {[%emt 0:00:26]} 5. Be2 {[%emt 0:00:27]} d5 {[%emt 0:05:13]} 6. Nf3 {[%emt 0:00:28]} b6 {[%emt 0:01:07]} 7. O-O {[%emt 0:00:29]} Bb7 {[%emt 0:00:29]} 8. Bd2 {[%emt 0:00:57][%cal Oc3d5]} Bd6 {[%emt 0:03:23] E51: Nimzo-Indian: Rubinstein: 4...0-0 5 Nf3 d5.} 9. Rc1 {[%emt 0:03:24]} a6 {[%emt 0:00:14]} 10. cxd5 {[%emt 0:02:52]} exd5 {[%emt 0:00:08]} 11. Ne5 {[%emt 0:01:52]} c5 {[%emt 0:02:05]} 12. f4 {[%emt 0:09:50]} Nc6 {[%emt 0:02:00] [#]} 13. Bf3 $146 {[%emt 0:02:43]} ({Predecessor:} 13. Be1 cxd4 14. Nxc6 Bxc6 15. exd4 b5 16. a3 Qb6 17. Kh1 Rfe8 18. Bh4 Ne4 19. Nxe4 dxe4 {0-1 (31) Suvorov,A (2353)-Navara,D (2697) Chess.com INT 2020}) 13... cxd4 {[%emt 0:02:26]} 14. Nxc6 {[%emt 0:01:09]} Bxc6 {[%emt 0:00:04]} 15. exd4 {[%emt 0:00:13]} Qb8 {[%emt 0:05:30]} 16. g3 {[%emt 0:03:50]} Qb7 {[%emt 0:02:45]} 17. Qb3 {[%emt 0:06:34]} Rfe8 {[%emt 0:06:19]} 18. Rfe1 {[%emt 0:01:52]} b5 {[%emt 0:02:13][%cal Bb6b5,Bb5b4][%mdl 32]} 19. Rxe8+ {[%emt 0:03:26]} Rxe8 {[%emt 0:00:05]} 20. Re1 {[%emt 0:01:25]} Rxe1+ {[%emt 0:04:51]} 21. Bxe1 {[%emt 0:00:08]} b4 {[%emt 0:05:18]} 22. Nd1 {[%emt 0:05:28][%cal Bc3d1,Bd1e3,Be3g4,Bg4e5,Be5d3,Bd3c5][%mdl 32]} a5 {[%emt 0:02:37][%cal Ba6a5,Ba5a4][%mdl 32]} 23. Ne3 {[%emt 0:05:09]} Qb6 {[%emt 0:09:06]} 24. Bf2 {[%emt 0:02:16][%cal Re3d5]} a4 {[%emt 0:00:31]} (24... Qxd4 $2 25. Nf1 Qc4 26. Qxc4 dxc4 27. Bxc6 $18) 25. Qc2 {[%emt 0:01:42]} Qb7 {[%emt 0:06:50]} 26. Ng4 {[%emt 0:07:42]} Ne4 {[%emt 0:02:39]} 27. Ne5 {[%emt 0:00:39]} Be8 {[%emt 0:00:35]} 28. Be3 {[%emt 0:01:52]} f6 {[%emt 0:03:25]} ({Black should try} 28... a3 $15 29. bxa3 bxa3) 29. Nd3 $11 {[%emt 0:00:39] The position is equal.} Qe7 {[%emt 0:02:11][%cal Oe4g3]} 30. Qc1 {[%emt 0:02:30]} h5 {[%emt 0:02:20]} 31. Nc5 {[%emt 0:03:11]} f5 {[%emt 0:04:51] Weighted Error Value: White=0.05 (flawless) /Black=0.07 (flawless)} 1/2-1/2

[Event "21st IPCA World Championship 2022"]
[Site "Ashdod"]
[Date "2022.05.14"]
[Round "7.2"]
[White "Yarmonov, Igor"]
[Black "Mikheev, Stanislav"]
[Result "0-1"]
[ECO "A45"]
[WhiteElo "2394"]
[BlackElo "2333"]
[Annotator "TA"]
[PlyCount "73"]
[EventDate "2022.05.09"]
[EventType "swiss"]
[EventCountry "ISR"]
[SourceTitle "playchess.com"]
[Source "ChessBase"]
[SourceQuality "1"]
[TimeControl "5400+30"]

{[%evp 9,73,-13,0,-35,-24,-35,-37,-37,-35,-63,-54,-102,-109,-92,-45,-83,-81,-85,-85,-92,-56,-112,-112,-133,-141,-173,-129,-122,-126,-116,-118,-202,-158,-221,-231,-416,-424,-515,-360,-324,-223,-322,-319,-304,-301,-302,-289,-359,-300,-336,-345,-486,-473,-602,-456,-589,-600,-972,-922,-865,-784,-29992,-29993,-29994,-1671,-29984]} 1. d4 {[%emt 0:00:02]} Nf6 {[%emt 0:00:11]} 2. Bf4 {[%emt 0:00:25]} c5 {[%emt 0:00:53]} 3. dxc5 {[%emt 0:01:20]} Na6 {[%emt 0:02:22]} 4. c4 {[%emt 0:01:29]} g6 {[%emt 0:03:10]} 5. Nc3 {[%emt 0:00:23]} Nxc5 {[%emt 0:01:08] [#]} 6. b4 $146 {[%emt 0:02:22] A45: Trompowsky Attack.} ({Predecessor:} 6. f3 Bg7 7. e4 d6 8. Qd2 O-O 9. O-O-O Be6 10. Bh6 Qa5 11. Bxg7 Kxg7 12. Kb1 {0-1 (34) Muzik,M (2163)-Mosesov,D (2379) Prague 2020}) 6... Nce4 {[%emt 0:05:40]} 7. Nxe4 {[%emt 0:05:13]} Nxe4 {[%emt 0:00:04]} 8. Qd4 {[%emt 0:02:00][%csl LRe4,LRh8] Against Bg7. Black is slightly better.} Nf6 {[%emt 0:00:31]} 9. Bd2 {[%emt 0:00:09]} Bg7 {[%emt 0:00:26]} 10. Bc3 {[%emt 0:00:04]} (10. Rc1 $15) 10... O-O $17 {[%emt 0:05:06]} 11. e4 {[%emt 0:04:48] Inhibits d5.} b6 {[%emt 0:03:49]} ({Black should play} 11... d6 $17 12. Nf3 Qb6) 12. f3 {[%emt 0:03:05]} d6 {[%emt 0:03:19]} 13. Qd2 {[%emt 0:08:34]} Be6 {[%emt 0:01:43]} 14. Rc1 {[%emt 0:01:37]} Rc8 {[%emt 0:00:56]} 15. Bd4 {[%emt 0:00:22]} (15. h4 $15) 15... Rc7 {[%emt 0:06:36]} 16. Rc3 {[%emt 0:01:16]} Qc8 {[%emt 0:05:28]} 17. Qc1 {[%emt 0:03:34]} Qb7 {[%emt 0:07:41]} 18. Bd3 {[%emt 0:00:25]} Nd7 {[%emt 0:00:48]} 19. Bxg7 {[%emt 0:00:44]} Kxg7 {[%emt 0:00:05]} 20. f4 {[%emt 0:00:59] Prevents Ne5.} (20. h4 $17) 20... f5 {[%emt 0:08:57]} 21. Qe3 {[%emt 0:15:34]} (21. Qb2 $17 {was worth a try.}) 21... Nf6 $19 {[%emt 0:02:11][%cal Rf5e4]} 22. exf5 {[%emt 0:00:47]} (22. Nf3 {was called for.} fxe4 23. Nd4) 22... Qxg2 {[%emt 0:01:55]} 23. Qf3 {[%emt 0:00:03]} Qb2 {[%emt 0:02:24]} 24. Ne2 {[%emt 0:00:38]} gxf5 {[%emt 0:01:15]} 25. O-O {[%emt 0:00:28]} (25. a3 $142) 25... Qxb4 {[%emt 0:01:02] Active counter play!} 26. h3 {[%emt 0:07:19]} Kh8 {[%emt 0:02:08]} ({Wrong is} 26... Bxc4 $2 27. Rfc1 Bd5 28. Qg3+ Kf7 29. a3 (29. Rxc7 $2 Rg8 $19) 29... Rxc3 30. axb4 Rxc1+ 31. Nxc1) 27. Kh2 {[%emt 0:00:07]} Rg8 {[%emt 0:00:57][%cal Re6c4]} ({Avoid the trap} 27... Bxc4 $2 28. a3 Qb5 29. Rb1 $19) 28. Rcc1 {[%emt 0:01:18]} Qc5 {[%emt 0:08:32]} 29. Ng3 {[%emt 0:02:25]} Bc8 {[%emt 0:01:17]} 30. Qe2 {[%emt 0:00:43]} (30. Qf2 $142) 30... Bb7 {[%emt 0:03:13]} 31. Rg1 {[%emt 0:00:50]} Qd4 {[%emt 0:01:54] Strongly threatening ...e6.} 32. Rcf1 {[%emt 0:00:18]} e6 {[%emt 0:03:44] And now ...Rcg7 would win.} 33. Qxe6 {[%emt 0:01:23]} Rcg7 {[%emt 0:04:32] White must now prevent ...Nh5.} (33... Qxd3 34. Qxf6+ Rcg7 35. Rf2 $14) 34. Qe2 {[%emt 0:01:45] [#] Inhibits Nh5.} Nh5 $1 {[%emt 0:06:39][%mdl 512]} 35. Be4 {[%emt 0:13:27]} (35. Qxh5 Qxd3) 35... Nxg3 {[%emt 0:01:27]} 36. Rxg3 {[%emt 0:00:07]} Bxe4 {[%emt 0:00:30]} (36... Rxg3 $142 37. Bd5 Qg7 38. Qe1 Bxd5 39. cxd5 Rg2+ 40. Kh1 {[#]} Rh2+ $3 {[%mdl 512]} 41. Kxh2 Qg2#) 37. Rfg1 {[%emt 0:00:29] Weighted Error Value: White=0.70/Black=0.51} 0-1

[Event "21st IPCA World Championship 2022"]
[Site "Ashdod"]
[Date "2022.05.14"]
[Round "7.3"]
[White "Campos, Eugenio"]
[Black "Gurbanov, Andrei"]
[Result "0-1"]
[ECO "C63"]
[WhiteElo "2247"]
[BlackElo "2302"]
[Annotator "TA"]
[PlyCount "68"]
[EventDate "2022.05.09"]
[EventType "swiss"]
[EventCountry "ISR"]
[SourceTitle "playchess.com"]
[Source "ChessBase"]
[SourceQuality "1"]
[TimeControl "5400+30"]

{[%evp 18,68,40,32,35,-64,15,-83,-81,-85,-83,-119,-87,-93,-89,-131,-94,-208,-201,-189,-195,-190,-187,-197,-200,-242,-204,-196,-201,-183,-138,-220,-218,-216,-187,-226,-156,-145,-135,-148,-108,-234,-214,-291,-255,-252,-265,-257,-255,-425,-413,-393,-383]} 1. e4 {[%emt 0:00:03]} e5 {[%emt 0:00:58]} 2. Nf3 {[%emt 0:00:09]} Nc6 {[%emt 0:00:08]} 3. Bb5 {[%emt 0:00:10]} f5 {[%emt 0:00:06]} 4. d3 {[%emt 0:00:10]} fxe4 {[%emt 0:00:10]} 5. dxe4 {[%emt 0:00:06]} Nf6 {[%emt 0:00:03]} 6. O-O {[%emt 0:00:34]} Bc5 {[%emt 0:00:14]} 7. Bg5 {[%emt 0:00:16]} d6 {[%emt 0:02:19]} 8. Nc3 {[%emt 0:00:55]} O-O {[%emt 0:01:33]} 9. Nd5 {[%emt 0:00:26]} Kh8 {[%emt 0:01:47]} 10. Nh4 {[%emt 0:04:02]} Be6 {[%emt 0:07:10] C63: Ruy Lopez: Schliemann/Jaenisch Defence.} 11. c3 {[%emt 0:06:31] [#]} ({White should play} 11. Bxf6 $14 gxf6 12. Qh5) 11... Ne7 $146 {[%emt 0:01:23]} ({Better is} 11... Bxd5 $15 12. exd5 Ne7) ({Predecessor:} 11... Qd7 12. Bxf6 gxf6 13. Qh5 Qg7 14. Bxc6 bxc6 15. Ne7 Bf7 16. Qf3 Be8 17. Nhf5 Qf7 18. b4 {½-½ (49) Bento Iglesias,P (2001)-Veganzonez Rojo,D (2117) Madrid 2017}) 12. Nxe7 {[%emt 0:03:36]} (12. Bxf6 $11 Bxd5 13. Bxg7+ (13. exd5 Rxf6 14. Kh1 Bxf2 $17) 13... Kxg7 14. exd5) 12... Qxe7 $17 {[%emt 0:00:12] Black is better.} 13. b4 {[%emt 0:00:12] [#]} Bb6 {[%emt 0:00:10]} 14. a4 {[%emt 0:00:07]} a5 {[%emt 0:01:20]} 15. Bd3 {[%emt 0:00:42]} Qf7 {[%emt 0:00:13] Black is more active.} 16. Be3 {[%emt 0:10:51]} Bb3 {[%emt 0:05:32]} 17. Bc2 {[%emt 0:01:22] [#]} (17. Qd2 $17) 17... Bxc2 $1 $19 {[%emt 0:00:45]} 18. Qxc2 {[%emt 0:00:10]} Bxe3 {[%emt 0:00:03]} 19. fxe3 {[%emt 0:00:37]} Qc4 {[%emt 0:00:05][%csl LRb4,LRe4]} 20. bxa5 {[%emt 0:00:12]} Rxa5 {[%emt 0:01:05]} ({Weaker is} 20... Nxe4 21. Rxf8+ Rxf8 22. Nf3) 21. Rab1 {[%emt 0:00:36]} Qxa4 {[%emt 0:01:45]} 22. Qxa4 {[%emt 0:05:16]} Rxa4 {[%emt 0:00:02]} 23. Rxb7 {[%emt 0:00:12]} Rc4 {[%emt 0:01:08]} 24. g4 {[%emt 0:00:38]} (24. Nf5 $17 {keeps fighting.}) 24... g6 {[%emt 0:01:38]} ({Avoid the trap} 24... Rxe4 $2 25. g5) 25. g5 {[%emt 0:07:55]} Nd7 {[%emt 0:00:10]} 26. Rc1 {[%emt 0:02:44]} Rf7 {[%emt 1:13:31]} ({Not} 26... Rxe4 $2 27. Rxc7 Nc5 28. Ng2) 27. Rb4 {[%emt 0:01:41]} Rc6 {[%emt 0:00:00]} 28. Kg2 {[%emt 0:00:23]} Nc5 {[%emt 0:00:00]} 29. Rb8+ {[%emt 0:00:53] This move loses the game for White.} (29. Nf3 $17) 29... Kg7 {[%emt 0:00:00]} 30. Ra1 {[%emt 0:00:15]} Ne6 {[%emt 0:00:00]} 31. Nf3 {[%emt 0:00:21]} Rxc3 {[%emt 0:00:00]} 32. Raa8 {[%emt 0:01:29][%csl Ga8][%cal Rb8g8]} Rf8 {[%emt 0:00:00] Against Rg8+} 33. Re8 {[%emt 0:00:48]} (33. Rxf8 {was forced.} Nxf8 34. Kf2) 33... Rxe8 {[%emt 0:00:00]} 34. Rxe8 {[%emt 0:00:03]} Kf7 {[%emt 0:00:00] Weighted Error Value: White=0.55/Black=0.20 (precise)} 0-1

[Event "21st IPCA World Championship 2022"]
[Site "Ashdod"]
[Date "2022.05.14"]
[Round "7.4"]
[White "Lipilin, Ilia"]
[Black "Alperovich, Asher"]
[Result "1-0"]
[ECO "A03"]
[WhiteElo "2198"]
[BlackElo "1865"]
[Annotator "TA"]
[PlyCount "85"]
[EventDate "2022.05.09"]
[EventType "swiss"]
[EventCountry "ISR"]
[SourceTitle "playchess.com"]
[Source "ChessBase"]
[SourceQuality "1"]
[TimeControl "5400+30"]

{[%evp 13,85,-15,-4,-19,-25,-32,-25,-31,-26,-52,-54,-47,-43,-37,-29,-97,-83,-88,-85,-93,-92,-116,-107,-114,-114,-125,-65,-68,-60,-69,-55,-110,-35,-38,-11,-59,-25,-29,-27,-51,-50,-54,-54,-51,-33,-19,-21,-35,0,0,0,0,0,-10,-36,-33,0,0,0,-7,0,-6,80,80,80,83,191,189,227,204,759,636,1383,1331]} 1. f4 {[%emt 0:00:04]} d5 {[%emt 0:05:29]} 2. Nf3 {[%emt 0:00:12]} Nf6 {[%emt 0:00:07]} 3. d3 {[%emt 0:00:12]} b6 {[%emt 0:00:51]} 4. g3 {[%emt 0:02:49]} Bb7 {[%emt 0:01:33]} 5. Bg2 {[%emt 0:00:11]} g6 {[%emt 0:06:25]} 6. c3 {[%emt 0:01:52]} Bg7 {[%emt 0:01:19]} 7. O-O {[%emt 0:00:10]} c5 {[%emt 0:01:42]} 8. e4 {[%emt 0:03:08] A03: Bird's Opening with 1...d5.} dxe4 {[%emt 0:04:25]} 9. Ng5 {[%emt 0:00:09][%cal Rd3e4]} O-O {[%emt 0:01:45]} 10. Nxe4 {[%emt 0:05:04] Black has an edge.} Nc6 {[%emt 0:03:50] [#]} 11. Be3 $146 {[%emt 0:01:01]} ({Predecessor:} 11. Qe2 Qd7 12. Nf2 Rad8 13. Rd1 Rfe8 14. Na3 e5 15. Qf1 exf4 16. Bxf4 Nd5 17. Ne4 Nxf4 18. Qxf4 {½-½ (53) Kotz,R (2166)-Taggatz,M (2241) Germany 2015}) 11... Qd7 {[%emt 0:04:20]} 12. Na3 {[%emt 0:03:06]} Rad8 {[%emt 0:04:17]} (12... Ng4 {looks sharper.} 13. Re1 Na5 14. Nf2 Nxf2 15. Bxf2 Bxg2 16. Kxg2 e5) 13. Nxf6+ {[%emt 0:13:02]} Bxf6 {[%emt 0:00:52]} 14. Qa4 {[%emt 0:05:29]} (14. Be4 $11) 14... Na5 {[%emt 0:14:51]} 15. Qxd7 {[%emt 0:11:31]} Rxd7 {[%emt 0:00:12]} 16. Be4 {[%emt 0:00:08]} Rfd8 {[%emt 0:01:23]} 17. Rab1 {[%emt 0:03:45]} Ba6 {[%emt 0:06:53]} 18. c4 {[%emt 0:00:27]} Bb7 {[%emt 0:02:34]} 19. Rfe1 {[%emt 0:05:58]} Nc6 {[%emt 0:01:39]} (19... Bg7 $17 20. Re2 e6) 20. Nc2 $1 $15 {[%emt 0:02:52]} Kg7 {[%emt 0:10:53][%cal Bg8g7,Bg7f8,Bf8f7,Bf7f6][%mdl 32]} 21. Kf2 {[%emt 0:01:28]} Kf8 {[%emt 0:00:27]} 22. a3 {[%emt 0:03:44]} (22. Rec1 $15) 22... a5 {[%emt 0:01:56]} ({Black should play} 22... Na5 $1 $17 {[%cal Oa5c4] ...Nxc4! is the strong threat.} 23. b4 Nxc4 $1 24. bxc5 (24. Bxb7 Nxe3 25. Rxe3 Rxb7 $19) 24... Bxe4 25. dxe4 Bc3) 23. b3 {[%emt 0:02:31]} e6 {[%emt 0:02:39]} 24. Red1 {[%emt 0:04:57]} (24. b4 $11) 24... Bc3 {[%emt 0:01:24]} (24... Nb4 $5 25. axb4 Bxe4 26. bxc5 Rxd3 27. Rxd3 Bxd3 $15) 25. Ke2 {[%emt 0:00:21]} f5 {[%emt 0:01:00]} 26. Bf3 {[%emt 0:01:14]} Kf7 {[%emt 0:02:34]} 27. Bf2 {[%emt 0:06:38]} Ba8 {[%emt 0:00:53]} 28. Be1 {[%emt 0:02:30]} Bxe1 {[%emt 0:01:48]} 29. Bxc6 {[%emt 0:02:04]} Bxc6 {[%emt 0:00:48]} 30. Nxe1 {[%emt 0:00:10]} Kf6 {[%emt 0:02:28]} (30... e5 $5 31. fxe5 Ke6 $15) 31. b4 {[%emt 0:00:17]} axb4 {[%emt 0:00:54]} 32. axb4 {[%emt 0:00:02]} Ra8 {[%emt 0:00:39]} 33. b5 {[%emt 0:07:19]} Bb7 {[%emt 0:00:47]} 34. Ra1 {[%emt 0:00:09]} Rdd8 {[%emt 0:00:48]} 35. Ke3 {[%emt 0:00:46]} e5 {[%emt 0:01:18]} 36. Nc2 {[%emt 0:00:41]} Rxa1 {[%emt 0:01:17]} 37. Rxa1 {[%emt 0:00:52]} Ra8 {[%emt 0:04:24]} (37... g5 $11) 38. Rxa8 $16 {[%emt 0:12:37]} Bxa8 $11 {[#] KB-KN} 39. Na3 $1 {[%emt 0:00:00]} h6 {[%emt 0:00:57] [#]} (39... g5 $16) 40. Nb1 $1 $18 {[%emt 0:00:00]} g5 {[%emt 0:00:34]} 41. Nc3 {[%emt 0:00:00]} h5 $2 {[%emt 0:08:05]} (41... exf4+ 42. gxf4 Ke7) 42. Na4 {[%emt 0:00:00]} h4 {[%emt 0:00:00]} 43. Nxb6 {[%emt 0:00:00] Weighted Error Value: White=0.13 (very precise) /Black=0.23 (precise)} 1-0

[Event "21st IPCA World Championship 2022"]
[Site "Ashdod"]
[Date "2022.05.14"]
[Round "7.5"]
[White "Babanov, Aleksandr"]
[Black "Srimskov, Elishar"]
[Result "1-0"]
[ECO "A06"]
[WhiteElo "1929"]
[BlackElo "1992"]
[Annotator "TA"]
[PlyCount "35"]
[EventDate "2022.05.09"]
[EventType "swiss"]
[EventCountry "ISR"]
[SourceTitle "playchess.com"]
[Source "ChessBase"]
[SourceQuality "1"]
[TimeControl "5400+30"]

{[%evp 9,35,-6,5,7,13,0,40,26,34,14,21,9,1,6,18,6,32,0,145,155,135,132,143,136,179,152,608,608]} 1. b3 {[%emt 0:00:37]} Nf6 {[%emt 0:02:34]} 2. Bb2 {[%emt 0:00:08]} e6 {[%emt 0:00:37]} 3. e3 {[%emt 0:01:44]} d5 {[%emt 0:00:26]} 4. Nf3 {[%emt 0:00:25]} Nbd7 {[%emt 0:00:27]} 5. g3 {[%emt 0:04:19]} Be7 {[%emt 0:01:06]} 6. Bg2 {[%emt 0:00:11] A06: Réti Opening: 1 Nf3 d5.} O-O {[%emt 0:00:27]} 7. O-O {[%emt 0:02:16] [#]} Ne4 $146 {[%emt 0:02:57]} ({Predecessor:} 7... c6 8. d3 Re8 9. Nbd2 b5 10. Qe2 Bd6 11. d4 e5 12. dxe5 Nxe5 13. Rfd1 Qb6 {1-0 (68) Kutirov,R (2367)-Vasovski,N (2309) Skopje 2002}) 8. d3 {[%emt 0:02:29] White is slightly better.} Bf6 {[%emt 0:00:51]} 9. c3 {[%emt 0:03:06]} Nd6 {[%emt 0:01:03]} 10. h4 {[%emt 0:04:37]} Re8 {[%emt 0:03:19]} 11. Nh2 {[%emt 0:01:29][%cal Bf3h2,Bh2g4,Bg4f6][%mdl 32]} c6 {[%emt 0:05:12]} 12. Ng4 {[%emt 0:04:39]} e5 {[%emt 0:02:09][%cal Of6h4]} 13. e4 {[%emt 0:06:31]} Nb6 {[%emt 0:08:32]} (13... dxe4 $11 {remains equal.} 14. dxe4 Nc5) 14. Nxf6+ $16 {[%emt 0:01:28]} Qxf6 {[%emt 0:00:10] [#]} 15. c4 $1 {[%emt 0:03:32]} dxc4 {[%emt 0:02:02]} 16. dxc4 {[%emt 0:01:27] aiming for c5.} c5 {[%emt 0:00:56]} 17. Nc3 {[%emt 0:02:27]} Be6 $2 {[%emt 0:01:47]} (17... Qe7 $16 18. Nd5 Nxd5) 18. Qxd6 {[%emt 0:02:43] Weighted Error Value: White=0.09 (flawless) /Black=0.91} 1-0

[Event "21st IPCA World Championship 2022"]
[Site "Ashdod"]
[Date "2022.05.14"]
[Round "7.6"]
[White "Mekus, Manuela"]
[Black "Valenta, Vit Vaclav"]
[Result "0-1"]
[ECO "A04"]
[WhiteElo "1644"]
[BlackElo "2014"]
[Annotator "TA"]
[PlyCount "116"]
[EventDate "2022.05.09"]
[EventType "swiss"]
[EventCountry "ISR"]
[SourceTitle "playchess.com"]
[Source "ChessBase"]
[SourceQuality "1"]
[TimeControl "5400+30"]

{[%evp 15,116,-4,3,-2,9,-8,-4,-34,-31,-54,-50,-73,2,-113,-109,-196,-183,-162,-191,-198,-173,-231,-147,-166,-160,-223,-231,-273,102,100,90,89,98,-63,-46,-58,-37,-40,-35,-54,-58,-61,-61,-235,-110,-100,-92,-106,-103,-109,-110,-150,-141,-130,-104,-160,-122,-210,-149,-228,-212,-202,-207,-185,-190,-181,-162,-164,-165,-193,-179,-225,-221,-228,-228,-245,-235,-302,-292,-282,-279,-1161,-967,-1816,-2295,-2190,-1945,-1838,-1649,-29978,-29979,-29976,-29976,-29980,-29981,-29981,-29982,-29983,-29984,-29984,-29983,-29982,-29982]} 1. e4 {[%emt 0:00:14]} c5 {[%emt 0:02:25]} 2. Nf3 {[%emt 0:00:42]} e6 {[%emt 0:00:06]} 3. d3 {[%emt 0:00:15]} Nc6 {[%emt 0:00:15]} 4. g3 {[%emt 0:00:18]} g6 {[%emt 0:00:10]} 5. Bg2 {[%emt 0:00:10]} Bg7 {[%emt 0:00:06]} 6. O-O {[%emt 0:00:35]} Nge7 {[%emt 0:00:15]} 7. Nbd2 {[%emt 0:05:53]} O-O {[%emt 0:01:05]} 8. c3 {[%emt 0:03:21]} b6 {[%emt 0:00:48]} 9. Re1 {[%emt 0:01:23] A04: Unusual lines after 1 Nf3 and King's Indian Attack.} Bb7 {[%emt 0:03:51]} 10. Nc4 {[%emt 0:12:18]} d5 {[%emt 0:07:30]} 11. Ncd2 {[%emt 0:01:26] The position is equal.} Qc7 {[%emt 0:03:07]} 12. Nf1 {[%emt 0:01:26]} Rad8 {[%emt 0:00:51]} 13. Qe2 {[%emt 0:00:28] [#]} Ba6 $146 {[%emt 0:01:04]} (13... e5 $17) ({Predecessor:} 13... Rfe8 14. e5 d4 15. Bf4 Nd5 16. Bg5 Nde7 17. Qd2 dxc3 18. bxc3 Ba6 19. Bf6 Bxd3 {1-0 (58) Burosch,R-Pohl,M (1700) Herne 2011}) 14. Bf4 {[%emt 0:06:37]} (14. e5 $1 $11 {remains equal.}) 14... e5 $17 {[%emt 0:02:25]} 15. Bg5 {[%emt 0:01:35]} (15. exd5 $17 Rxd5 16. c4 exf4 17. cxd5 Nxd5 18. a3) 15... dxe4 {[%emt 0:00:36]} 16. Qxe4 {[%emt 0:00:03]} Bxd3 {[%emt 0:00:15]} 17. Qa4 {[%emt 0:06:20]} h6 {[%emt 0:01:19]} 18. Be3 {[%emt 0:01:47]} (18. Bxe7 $142 Nxe7 19. N3d2) 18... Nf5 {[%emt 0:03:27]} 19. N3d2 {[%emt 0:01:02]} Nce7 {[%emt 0:08:25]} 20. Ne4 {[%emt 0:06:24]} (20. Be4 $17) 20... Nxe3 {[%emt 0:05:02]} 21. Rxe3 {[%emt 0:00:30]} f5 $2 {[%emt 0:01:46] [#]} ({Better is} 21... c4 $19 {Hoping for ...Nd5.} 22. Ned2 f5) 22. Rxd3 $1 $16 {[%emt 0:00:54][%mdl 576] Remove Defender, Decoy} Rxd3 {[%emt 0:00:08]} 23. Qc4+ {[%emt 0:00:10]} Rd5 {[%emt 0:00:01] ...Kh8 is the strong threat.} 24. Ned2 $2 {[%emt 0:00:12]} (24. Ne3 $16) 24... e4 {[%emt 0:01:51]} 25. Ne3 {[%emt 0:00:39][%mdl 64] Pin} Qe5 {[%emt 0:05:49][%cal Ob6b5]} 26. Nxd5 {[%emt 0:00:12]} Qxd5 {[%emt 0:00:41]} 27. Bf1 {[%emt 0:01:34][%cal Od2e4]} Kh7 $36 {[%emt 0:01:24][%mdl 2048] White is under pressure.} 28. Qxd5 {[%emt 0:00:32]} Nxd5 {[%emt 0:00:02]} 29. Bc4 $2 {[%emt 0:00:55] [#]} ({White should play} 29. Nc4 $15) 29... Rd8 {[%emt 0:03:24]} (29... Nxc3 $1 $19 {[%mdl 512] is more deadly. Strongly threatening ...Na4.} 30. bxc3 Bxc3) 30. Nf1 $17 {[%emt 0:00:28] And now Rd1 would win.} Nc7 {[%emt 0:02:30] Black is more active.} 31. Ne3 {[%emt 0:00:50]} b5 {[%emt 0:02:05]} 32. Bf1 {[%emt 0:00:52]} h5 {[%emt 0:04:07]} 33. Rd1 {[%emt 0:00:49]} Rxd1 {[%emt 0:00:08]} 34. Nxd1 {[%emt 0:00:06][%mdl 4096] Endgame KBN-KBN} Bh6 {[%emt 0:00:07]} 35. Ne3 {[%emt 0:00:47]} (35. f3 $142) 35... Kg7 {[%emt 0:01:40]} 36. Ng2 {[%emt 0:07:18]} (36. f4 $17) 36... a5 {[%emt 0:03:09]} 37. Ne1 {[%emt 0:39:55]} (37. b3 $17) 37... Bc1 {[%emt 0:00:37]} 38. c4 {[%emt 0:00:00]} bxc4 {[%emt 0:03:19]} ({Stronger than} 38... Bxb2 39. cxb5 Nd5 40. Bc4 $17) 39. Bxc4 {[%emt 0:00:00]} Bxb2 {[%emt 0:00:08]} 40. Nc2 {[%emt 0:00:00]} Bd4 {[%emt 0:01:16]} 41. Kf1 {[%emt 0:00:00]} Ne8 {[%emt 0:00:34]} 42. Ke2 {[%emt 0:00:00]} Nd6 {[%emt 0:00:14]} 43. Bd5 {[%emt 0:00:00]} (43. Ba6 {was necessary.}) 43... Nb5 $19 {[%emt 0:03:18]} 44. Ke1 {[%emt 0:00:00]} Nc3 {[%emt 0:02:03]} 45. Be6 {[%emt 0:00:00]} Kf6 {[%emt 0:00:40]} 46. Bg8 {[%emt 0:00:00]} g5 {[%emt 0:03:29]} 47. Bc4 {[%emt 0:00:00]} h4 {[%emt 0:01:16]} 48. Ne3 $2 {[%emt 0:00:00]} (48. gxh4 gxh4 49. Bb3) 48... Bxe3 {[%emt 0:02:18]} 49. fxe3 {[%emt 0:00:00]} hxg3 {[%emt 0:00:08]} 50. hxg3 {[%emt 0:00:00] KB-KN} Ke5 {[%emt 0:00:12]} 51. Kd2 {[%emt 0:00:00]} Nd5 {[%emt 0:00:42] ( -> ...f4)} 52. a3 {[%emt 0:00:00]} f4 {[%emt 0:02:40] Black mates.} 53. exf4+ {[%emt 0:00:00]} gxf4 {[%emt 0:00:01]} 54. gxf4+ {[%emt 0:00:00]} Nxf4 {[%emt 0:00:02]} 55. Kc3 {[%emt 0:00:00]} Nd5+ {[%emt 0:00:13]} 56. Kb3 {[%emt 0:00:00]} Kd4 {[%emt 0:00:14]} 57. Bf1 {[%emt 0:00:00]} Nc3 {[%emt 0:00:22]} 58. Ba6 {[%emt 0:10:30]} a4+ {Weighted Error Value: White=0.69/Black=0.28 (precise)} 0-1